[Event "26th OIBM 2023"]
[Site "Gmund am Tegernsee"]
[Date "2023.11.04"]
[Round "8.22"]
[White "Unuk, Laura"]
[Black "de Francesco, Klaus"]
[Result "1-0"]
[ECO "D00"]
[WhiteElo "2313"]
[BlackElo "2140"]
[Annotator "ChessBase"]
[PlyCount "99"]
[EventDate "2023.10.04"]
[EventType "swiss"]
[EventCountry "GER"]
[SourceTitle "playchess.com"]
[Source "ChessBase"]
[SourceQuality "1"]
[TimeControl "40/5400+30:1800+30"]

1. d4 {[%emt 0:00:04]} Nf6 {[%emt 0:00:19]} 2. Nc3 {[%emt 0:00:17]} d5 {[%emt 0:00:26]} 3. Bf4 {[%emt 0:00:16]} a6 {[%emt 0:01:09]} 4. e3 {[%emt 0:00:16]} c5 {[%emt 0:00:53]} 5. dxc5 {[%emt 0:00:53]} Nc6 {[%emt 0:00:34]} 6. Nf3 {[%emt 0:01:54]} Bg4 {[%emt 0:00:54]} 7. Be2 {[%emt 0:11:23]} Qa5 {[%emt 0:05:03]} 8. Nd2 {[%emt 0:06:30]} Bxe2 {[%emt 0:01:15]} 9. Qxe2 {[%emt 0:00:09]} Qxc5 {[%emt 0:01:17]} 10. Nb3 {[%emt 0:04:34]} Qa7 {[%emt 0:00:47]} 11. O-O-O {[%emt 0:01:15]} e6 {[%emt 0:01:01]} 12. e4 {[%emt 0:04:05]} dxe4 {[%emt 0:04:59]} 13. Nxe4 {[%emt 0:09:46]} Nxe4 {[%emt 0:00:56]} 14. Qxe4 {[%emt 0:00:05]} Rc8 {[%emt 0:05:32]} 15. Kb1 {[%emt 0:10:53]} Be7 {[%emt 0:01:46]} 16. Be3 {[%emt 0:06:14]} Qb8 {[%emt 0:03:30]} 17. Bd2 {[%emt 0:26:54]} O-O {[%emt 0:11:22]} 18. Bc3 {[%emt 0:00:33]} b5 {[%emt 0:02:14]} 19. Rd3 {[%emt 0:02:47]} b4 {[%emt 0:02:54]} 20. Rh3 {[%emt 0:07:18]} f5 {[%emt 0:05:17]} 21. Qxe6+ {[%emt 0:00:27]} Rf7 {[%emt 0:00:24]} 22. Bd2 {[%emt 0:03:00]} a5 {[%emt 0:07:05]} 23. Be3 {[%emt 0:01:20]} a4 {[%emt 0:02:06]} 24. Nd4 {[%emt 0:00:38]} Nd8 {[%emt 0:04:43]} 25. Qd5 {[%emt 0:00:08]} Qc7 {[%emt 0:03:06]} 26. Rc1 {[%emt 0:00:28]} g6 {[%emt 0:02:09]} 27. c4 {[%emt 0:00:39]} f4 {[%emt 0:03:00]} 28. Nb5 {[%emt 0:00:28]} Qc6 {[%emt 0:01:18]} 29. Bd2 {[%emt 0:00:43]} Qf6 {[%emt 0:00:56]} 30. Rd3 {[%emt 0:00:24]} Nc6 {[%emt 0:01:16]} 31. c5 {[%emt 0:00:40]} a3 {[%emt 0:06:09]} 32. bxa3 {[%emt 0:00:25]} Ne5 {[%emt 0:01:42]} 33. Rd4 {[%emt 0:00:37]} Qf5+ {[%emt 0:02:05]} 34. Qe4 {[%emt 0:00:35]} Qxe4+ {[%emt 0:01:15]} 35. Rxe4 {[%emt 0:00:01]} Nd3 {[%emt 0:00:09]} 36. axb4 {[%emt 0:00:57]} Nxc1 {[%emt 0:02:28]} 37. Kxc1 {[%emt 0:00:18]} f3 {[%emt 0:01:19]} 38. g3 {[%emt 0:00:16]} Bxc5 {[%emt 0:01:36]} 39. bxc5 {[%emt 0:00:08]} Rxc5+ {[%emt 0:00:06]} 40. Nc3 {[%emt 0:00:11]} Rh5 {[%emt 0:01:02]} 41. h4 {[%emt 0:03:54]} h6 {[%emt 0:00:06]} 42. Kc2 {[%emt 0:01:46]} Kh7 {[%emt 0:00:23]} 43. Re6 {[%emt 0:01:29]} g5 {[%emt 0:00:17]} 44. hxg5 {[%emt 0:00:43]} hxg5 {[%emt 0:00:05]} 45. Ne4 {[%emt 0:00:18]} Rc7+ {[%emt 0:00:16]} 46. Kd3 {[%emt 0:01:39]} Rh2 {[%emt 0:00:15]} 47. Bxg5 {[%emt 0:03:01]} Ra7 {[%emt 0:00:06]} 48. Ke3 {[%emt 0:00:32]} Ra3+ {[%emt 0:00:08]} 49. Kf4 {[%emt 0:00:12]} Rh1 {[%emt 0:00:05]} 50. Be7 {[%emt 0:03:26]} 1-0

[Event "26th OIBM 2023"]
[Site "Gmund am Tegernsee"]
[Date "2023.11.04"]
[Round "8.23"]
[White "Arnhold, Steffi"]
[Black "Mai, Philipp"]
[Result "1/2-1/2"]
[ECO "B99"]
[WhiteElo "2142"]
[BlackElo "2313"]
[Annotator "ChessBase"]
[PlyCount "63"]
[EventDate "2023.10.04"]
[EventType "swiss"]
[EventCountry "GER"]
[SourceTitle "playchess.com"]
[Source "ChessBase"]
[SourceQuality "1"]
[TimeControl "40/5400+30:1800+30"]

1. e4 {[%emt 0:00:04]} c5 {[%emt 0:00:04]} 2. Nf3 {[%emt 0:00:05]} d6 {[%emt 0:00:03]} 3. d4 {[%emt 0:00:07]} cxd4 {[%emt 0:00:06]} 4. Nxd4 {[%emt 0:00:04]} Nf6 {[%emt 0:00:05]} 5. Nc3 {[%emt 0:00:06]} a6 {[%emt 0:00:05]} 6. Bg5 {[%emt 0:00:09]} e6 {[%emt 0:00:17]} 7. f4 {[%emt 0:00:07]} Be7 {[%emt 0:00:17]} 8. Qf3 {[%emt 0:00:12]} Qc7 {[%emt 0:00:11]} 9. O-O-O {[%emt 0:00:13]} Nbd7 {[%emt 0:00:06]} 10. g4 {[%emt 0:00:10]} h6 {[%emt 0:00:20]} 11. Bxf6 {[%emt 0:01:05]} Bxf6 {[%emt 0:00:13]} 12. Kb1 {[%emt 0:00:33]} Nb6 {[%emt 0:02:29]} 13. h4 {[%emt 0:04:48]} Bd7 {[%emt 0:00:35]} 14. g5 {[%emt 0:09:41]} Bxd4 {[%emt 0:00:54]} 15. Rxd4 {[%emt 0:00:13]} Qc5 {[%emt 0:06:30]} 16. Rd1 {[%emt 0:06:47]} O-O-O {[%emt 0:02:37]} 17. Bh3 {[%emt 0:08:43]} hxg5 {[%emt 0:03:48]} 18. hxg5 {[%emt 0:00:46]} Kb8 {[%emt 0:01:11]} 19. Qd3 {[%emt 0:14:44]} Bc6 {[%emt 0:02:26]} 20. g6 {[%emt 0:10:32]} f5 {[%emt 0:27:07]} 21. Rhe1 {[%emt 0:03:48]} fxe4 {[%emt 0:01:18]} 22. Nxe4 {[%emt 0:00:40]} Bxe4 {[%emt 0:01:02]} 23. Rxe4 {[%emt 0:00:18]} e5 {[%emt 0:00:38]} 24. Be6 {[%emt 0:12:49]} exf4 {[%emt 0:16:18]} 25. Rxf4 {[%emt 0:01:51]} Rhe8 {[%emt 0:08:24]} 26. Bf7 {[%emt 0:04:47]} Re5 {[%emt 0:03:38]} 27. a3 {[%emt 0:02:07]} Nc8 {[%emt 0:06:48]} 28. Rc4 {[%emt 0:08:01]} Qa5 {[%emt 0:03:16]} 29. Qc3 {[%emt 0:00:04]} Qxc3 30. Rxc3 {[%emt 0:03:45]} Rh8 {[%emt 0:02:28]} 31. Rdd3 {[%emt 0:02:26]} Rhh5 32. Rh3 {[%emt 0:06:45]} 1/2-1/2

[Event "26th OIBM 2023"]
[Site "Gmund am Tegernsee"]
[Date "2023.11.04"]
[Round "8.24"]
[White "Beisteiner, Joachim"]
[Black "Garner, Isaac"]
[Result "1/2-1/2"]
[ECO "C54"]
[WhiteElo "2115"]
[BlackElo "2309"]
[Annotator "ChessBase"]
[PlyCount "190"]
[EventDate "2023.10.04"]
[EventType "swiss"]
[EventCountry "GER"]
[SourceTitle "playchess.com"]
[Source "ChessBase"]
[SourceQuality "1"]
[TimeControl "40/5400+30:1800+30"]

1. e4 {[%emt 0:00:06]} e5 {[%emt 0:00:07]} 2. Nf3 {[%emt 0:00:13]} Nc6 {[%emt 0:00:06]} 3. Bc4 {[%emt 0:00:15]} Nf6 {[%emt 0:00:05]} 4. d3 {[%emt 0:00:15]} Bc5 {[%emt 0:00:08]} 5. c3 {[%emt 0:00:12]} a5 {[%emt 0:00:52]} 6. O-O {[%emt 0:00:17]} d6 {[%emt 0:00:05]} 7. Re1 {[%emt 0:00:49]} O-O {[%emt 0:00:07]} 8. h3 {[%emt 0:00:41]} h6 {[%emt 0:00:06]} 9. Nbd2 {[%emt 0:02:00]} Be6 {[%emt 0:00:12]} 10. Bb5 {[%emt 0:00:29]} Qb8 {[%emt 0:00:07]} 11. Nf1 {[%emt 0:02:20]} Qa7 {[%emt 0:00:05]} 12. Be3 {[%emt 0:00:21]} Bxe3 {[%emt 0:00:06]} 13. Nxe3 {[%emt 0:00:17]} a4 {[%emt 0:00:04]} 14. Bc4 {[%emt 0:03:47]} Bxc4 {[%emt 0:01:39]} 15. Nxc4 {[%emt 0:02:47]} b5 {[%emt 0:00:12]} 16. Ne3 {[%emt 0:01:18]} Ne7 {[%emt 0:04:00]} 17. b4 {[%emt 0:01:41]} axb3 {[%emt 0:10:50]} 18. axb3 {[%emt 0:00:07]} Qb7 {[%emt 0:01:20]} 19. Qc2 {[%emt 0:01:16]} Ra6 {[%emt 0:07:40]} 20. Rxa6 {[%emt 0:00:43]} Qxa6 {[%emt 0:00:04]} 21. d4 {[%emt 0:01:38]} Ng6 {[%emt 0:04:43]} 22. dxe5 {[%emt 0:05:58]} dxe5 {[%emt 0:00:57]} 23. Nd5 {[%emt 0:00:35]} Nxd5 {[%emt 0:09:27]} 24. exd5 {[%emt 0:00:08]} Qd6 {[%emt 0:01:55]} 25. c4 {[%emt 0:01:41]} bxc4 {[%emt 0:04:07]} 26. bxc4 {[%emt 0:00:27]} f5 {[%emt 0:09:53]} 27. Qc3 {[%emt 0:03:51]} e4 {[%emt 0:04:57]} 28. Nd4 {[%emt 0:05:22]} Nf4 {[%emt 0:05:29]} 29. Nb5 {[%emt 0:09:40]} Qc5 {[%emt 0:02:41]} 30. Qe3 {[%emt 0:09:59]} Qxc4 {[%emt 0:02:31]} 31. Na3 {[%emt 0:00:10]} Qb4 {[%emt 0:00:05]} 32. Rb1 {[%emt 0:00:09]} Qd6 {[%emt 0:00:05]} 33. Nc4 {[%emt 0:15:34]} Nxd5 {[%emt 0:01:28]} 34. Nxd6 {[%emt 0:06:53]} Nxe3 {[%emt 0:00:07]} 35. Nb5 {[%emt 0:00:05]} Nd5 {[%emt 0:00:42]} 36. Rc1 {[%emt 0:00:08]} Rf7 {[%emt 0:02:00]} 37. Rc5 {[%emt 0:00:13]} Rd7 {[%emt 0:01:01]} 38. Nd4 {[%emt 0:00:59]} g6 {[%emt 0:02:02]} 39. Nc6 {[%emt 0:00:13]} Kg7 {[%emt 0:02:03]} 40. Ne5 {[%emt 0:04:14]} Rd8 {[%emt 0:03:09]} 41. Nc4 {[%emt 0:31:41]} f4 {[%emt 0:40:50]} 42. Rc6 {[%emt 0:01:23]} g5 {[%emt 0:03:18]} 43. Re6 {[%emt 0:01:33]} Rb8 {[%emt 0:00:00]} 44. Rxe4 {[%emt 0:00:00]} Rb1+ {[%emt 0:00:00]} 45. Kh2 {[%emt 0:00:00]} Rb4 {[%emt 0:00:00]} 46. Re5 {[%emt 0:00:00]} Rxc4 {[%emt 0:00:00]} 47. Rxd5 {[%emt 0:00:00]} Rc2 {[%emt 0:00:00]} 48. Kg1 {[%emt 0:00:00]} Rc1+ {[%emt 0:00:00]} 49. Kh2 {[%emt 0:00:00]} Rc2 {[%emt 0:00:00]} 50. Kg1 {[%emt 0:00:00]} Kf6 {[%emt 0:00:00]} 51. Kf1 {[%emt 0:00:00]} h5 {[%emt 0:00:00]} 52. Ke1 {[%emt 0:00:00]} Kg6 {[%emt 0:00:00]} 53. Rd8 {[%emt 0:00:00]} Rc5 {[%emt 0:05:05]} 54. Ke2 {[%emt 0:00:00]} Re5+ {[%emt 0:00:38]} 55. Kf3 {[%emt 0:00:00]} Re6 {[%emt 0:01:31]} 56. h4 {[%emt 0:00:00]} gxh4 {[%emt 0:01:47]} 57. Kxf4 {[%emt 0:00:00]} Rf6+ {[%emt 0:00:05]} 58. Ke3 {[%emt 0:00:00]} Re6+ {[%emt 0:01:18]} 59. Kf4 {[%emt 0:00:00]} Re2 {[%emt 0:00:56]} 60. Kf3 {[%emt 0:00:00]} Re7 {[%emt 0:00:18]} 61. Kf4 {[%emt 0:00:00]} Rf7+ {[%emt 0:01:24]} 62. Ke3 {[%emt 0:00:00]} Rf6 {[%emt 0:01:52]} 63. Rh8 {[%emt 0:00:00]} Re6+ {[%emt 0:01:03]} 64. Kf4 {[%emt 0:00:00]} Rf6+ {[%emt 0:00:04]} 65. Ke3 {[%emt 0:00:00]} Ra6 {[%emt 0:00:29]} 66. Ke4 {[%emt 0:00:00]} Ra4+ {[%emt 0:00:11]} 67. Ke3 {[%emt 0:00:00]} Rc4 {[%emt 0:01:14]} 68. Kf3 {[%emt 0:00:00]} Rc3+ {[%emt 0:01:10]} 69. Ke4 {[%emt 0:00:00]} Rc2 {[%emt 0:00:10]} 70. Kf3 {[%emt 0:00:00]} c6 {[%emt 0:00:15]} 71. Rc8 {[%emt 0:00:00]} Rc4 {[%emt 0:00:50]} 72. Rg8+ {[%emt 0:00:00]} Kf7 {[%emt 0:00:18]} 73. Rh8 {[%emt 0:00:00]} Rc5 {[%emt 0:00:47]} 74. Kf4 {[%emt 0:00:00]} Rb5 {[%emt 0:00:54]} 75. Rc8 {[%emt 0:00:00]} Rc5 {[%emt 0:01:04]} 76. Rh8 {[%emt 0:00:00]} Kg7 {[%emt 0:00:35]} 77. Rc8 {[%emt 0:00:00]} Kh7 {[%emt 0:00:55]} 78. Re8 {[%emt 0:00:00]} Rc4+ {[%emt 0:00:46]} 79. Kf3 {[%emt 0:00:00]} Kg6 {[%emt 0:00:14]} 80. Rh8 {[%emt 0:00:00]} Rc3+ {[%emt 0:00:16]} 81. Ke4 {[%emt 0:00:00]} Rc4+ {[%emt 0:00:06]} 82. Kf3 {[%emt 0:00:00]} Rc5 {[%emt 0:00:46]} 83. Rc8 {[%emt 0:00:00]} Rf5+ {[%emt 0:01:12]} 84. Ke3 {[%emt 0:00:00]} Rf6 {[%emt 0:00:45]} 85. Rh8 {[%emt 0:00:17]} Kg5 {[%emt 0:00:11]} 86. Rc8 {[%emt 0:01:28]} Re6+ {[%emt 0:00:42]} 87. Kf3 {[%emt 0:00:08]} Rf6+ {[%emt 0:00:35]} 88. Ke3 {[%emt 0:00:30]} Rg6 {[%emt 0:00:34]} 89. Rh8 {[%emt 0:00:38]} Rg7 {[%emt 0:00:26]} 90. Rc8 {[%emt 0:00:14]} Rg6 {[%emt 0:00:08]} 91. Rh8 {[%emt 0:00:08]} Kg4 {[%emt 0:00:32]} 92. Ra8 {[%emt 0:01:07]} Re6+ {[%emt 0:00:23]} 93. Kd2 {[%emt 0:00:12]} Re5 {[%emt 0:00:44]} 94. Rc8 {[%emt 0:00:40]} Rd5+ {[%emt 0:00:31]} 95. Ke3 {[%emt 0:00:15]} Re5+ {[%emt 0:02:51]} 1/2-1/2

[Event "26th OIBM 2023"]
[Site "Gmund am Tegernsee"]
[Date "2023.11.04"]
[Round "8.25"]
[White "Renner, Kai"]
[Black "Linster, Philippe"]
[Result "1/2-1/2"]
[ECO "C90"]
[WhiteElo "2103"]
[BlackElo "2303"]
[Annotator "ChessBase"]
[PlyCount "35"]
[EventDate "2023.10.04"]
[EventType "swiss"]
[EventCountry "GER"]
[SourceTitle "playchess.com"]
[Source "ChessBase"]
[SourceQuality "1"]
[TimeControl "40/5400+30:1800+30"]

1. e4 {[%emt 0:00:03]} e5 {[%emt 0:00:26]} 2. Nf3 {[%emt 0:00:09]} Nc6 {[%emt 0:00:07]} 3. Bb5 {[%emt 0:00:12]} a6 {[%emt 0:00:06]} 4. Ba4 {[%emt 0:00:07]} Nf6 {[%emt 0:00:10]} 5. O-O {[%emt 0:00:13]} Be7 {[%emt 0:00:10]} 6. Re1 {[%emt 0:00:09]} b5 {[%emt 0:00:05]} 7. Bb3 {[%emt 0:00:06]} d6 {[%emt 0:00:05]} 8. a4 {[%emt 0:00:49]} b4 {[%emt 0:09:09]} 9. d4 {[%emt 0:00:40]} Bg4 {[%emt 0:06:12]} 10. dxe5 {[%emt 0:00:41]} Nxe5 {[%emt 0:21:09]} 11. Nbd2 {[%emt 0:00:17]} O-O {[%emt 0:02:04]} 12. h3 {[%emt 0:01:13]} Bc8 {[%emt 0:09:39]} 13. Nxe5 {[%emt 0:06:53]} dxe5 {[%emt 0:00:02]} 14. a5 {[%emt 0:00:22]} Bb7 {[%emt 0:01:28]} 15. Qe2 {[%emt 0:00:21]} Bc5 {[%emt 0:03:35]} 16. Bc4 {[%emt 0:03:35]} Qe7 {[%emt 0:02:34]} 17. Bd3 {[%emt 0:02:59]} h6 {[%emt 0:03:32]} 18. c3 {[%emt 1:20:41]} 1/2-1/2

[Event "26th OIBM 2023"]
[Site "Gmund am Tegernsee"]
[Date "2023.11.04"]
[Round "8.26"]
[White "Tillmann, Markus"]
[Black "Solomon, Kenny"]
[Result "0-1"]
[ECO "D58"]
[WhiteElo "2085"]
[BlackElo "2300"]
[Annotator "ChessBase"]
[PlyCount "179"]
[EventDate "2023.10.04"]
[EventType "swiss"]
[EventCountry "GER"]
[SourceTitle "playchess.com"]
[Source "ChessBase"]
[SourceQuality "1"]
[TimeControl "40/5400+30:1800+30"]

1. d4 {[%emt 0:00:03]} Nf6 {[%emt 0:00:09]} 2. c4 {[%emt 0:00:21]} e6 {[%emt 0:00:07]} 3. Nf3 {[%emt 0:00:36]} d5 {[%emt 0:01:08]} 4. Nc3 {[%emt 0:00:08]} Be7 {[%emt 0:00:08]} 5. Bg5 {[%emt 0:00:59]} h6 {[%emt 0:00:07]} 6. Bh4 {[%emt 0:00:56]} O-O {[%emt 0:00:16]} 7. e3 {[%emt 0:00:19]} b6 {[%emt 0:00:04]} 8. Bd3 {[%emt 0:01:55]} Bb7 {[%emt 0:00:08]} 9. O-O {[%emt 0:00:12]} Nbd7 {[%emt 0:00:16]} 10. Rc1 {[%emt 0:02:50]} Ne4 {[%emt 0:12:41]} 11. Bxe7 {[%emt 0:03:17]} Qxe7 {[%emt 0:01:21]} 12. Qe2 {[%emt 0:04:21]} Nxc3 {[%emt 0:11:16]} 13. Rxc3 {[%emt 0:01:24]} c5 {[%emt 0:00:08]} 14. e4 {[%emt 0:04:24]} cxd4 {[%emt 0:17:02]} 15. Nxd4 {[%emt 0:00:19]} Qf6 {[%emt 0:04:07]} 16. Nb5 {[%emt 0:16:35]} dxc4 {[%emt 0:18:37]} 17. Bxc4 {[%emt 0:05:06]} Qf4 {[%emt 0:04:33]} 18. Re1 {[%emt 0:04:20]} a6 {[%emt 0:02:17]} 19. Nd4 {[%emt 0:17:58]} Nc5 {[%emt 0:00:32]} 20. Re3 {[%emt 0:01:41]} Rad8 {[%emt 0:04:53]} 21. Nb3 {[%emt 0:06:22]} Nxb3 {[%emt 0:00:50]} 22. Bxb3 {[%emt 0:00:29]} Rd4 {[%emt 0:00:38]} 23. e5 {[%emt 0:04:45]} Rfd8 {[%emt 0:02:13]} 24. Rd1 {[%emt 0:02:42]} a5 {[%emt 0:13:19]} 25. Rxd4 {[%emt 0:00:18]} Qxd4 {[%emt 0:00:17]} 26. h3 {[%emt 0:01:27]} Kf8 {[%emt 0:00:36]} 27. Qc2 {[%emt 0:04:54]} Rc8 {[%emt 0:01:34]} 28. Rc3 {[%emt 0:06:23]} Rd8 {[%emt 0:01:36]} 29. Rc7 {[%emt 0:02:23]} Be4 {[%emt 0:00:54]} 30. Qc3 {[%emt 0:00:07]} Qxc3 {[%emt 0:00:21]} 31. Rxc3 {[%emt 0:04:01]} g5 {[%emt 0:02:01]} 32. f3 {[%emt 0:00:29]} Bd5 {[%emt 0:00:27]} 33. a4 {[%emt 0:01:01]} Bxb3 {[%emt 0:01:34]} 34. Rxb3 {[%emt 0:00:06]} Rd4 {[%emt 0:00:07]} 35. Rxb6 {[%emt 0:00:27]} Rxa4 {[%emt 0:00:01]} 36. Kf2 {[%emt 0:01:39]} h5 {[%emt 0:01:06]} 37. Ke3 {[%emt 0:01:17]} Kg7 {[%emt 0:00:09]} 38. g4 {[%emt 0:00:32]} h4 {[%emt 0:00:33]} 39. Rb3 {[%emt 0:01:29]} Kg6 {[%emt 0:01:19]} 40. Ra3 {[%emt 0:00:13]} Rb4 {[%emt 0:00:02]} 41. b3 {[%emt 0:03:07]} Kg7 {[%emt 0:05:14]} 42. Kd3 {[%emt 0:06:03]} Kg6 {[%emt 0:00:06]} 43. Ke3 {[%emt 0:00:39]} Rb5 {[%emt 0:01:19]} 44. Ke4 {[%emt 0:00:32]} Rc5 {[%emt 0:01:31]} 45. Kd4 {[%emt 0:00:54]} Rd5+ {[%emt 0:00:05]} 46. Ke4 {[%emt 0:00:12]} Kh6 {[%emt 0:06:30]} 47. Ra4 {[%emt 0:02:44]} Rb5 {[%emt 0:00:02]} 48. Ra3 {[%emt 0:00:10]} Kg7 {[%emt 0:00:02]} 49. Kd4 {[%emt 0:00:47]} Kf8 {[%emt 0:00:06]} 50. Ke4 {[%emt 0:02:16]} Ke7 {[%emt 0:00:16]} 51. Ra4 {[%emt 0:00:38]} Rxb3 {[%emt 0:00:46]} 52. Rxa5 {[%emt 0:00:13]} Kf8 {[%emt 0:03:39]} 53. Ra4 {[%emt 0:00:16]} Kg7 {[%emt 0:00:31]} 54. Rd4 {[%emt 0:01:10]} Kg6 {[%emt 0:03:31]} 55. Rd3 {[%emt 0:01:27]} Rb4+ {[%emt 0:00:14]} 56. Rd4 {[%emt 0:00:13]} Rb1 {[%emt 0:01:13]} 57. Rd3 {[%emt 0:00:49]} Rf1 {[%emt 0:00:43]} 58. Rc3 {[%emt 0:00:25]} Kg7 {[%emt 0:02:06]} 59. Rb3 {[%emt 0:01:49]} Kg6 {[%emt 0:01:39]} 60. Rc3 {[%emt 0:00:10]} Re1+ {[%emt 0:03:14]} 61. Re3 {[%emt 0:00:12]} Ra1 {[%emt 0:00:04]} 62. Rd3 {[%emt 0:00:06]} Ra5 {[%emt 0:00:08]} 63. Rd4 {[%emt 0:00:29]} f6 {[%emt 0:01:40]} 64. exf6 {[%emt 0:00:07]} Kxf6 {[%emt 0:00:03]} 65. Rb4 {[%emt 0:01:43]} Re5+ {[%emt 0:00:13]} 66. Kd3 {[%emt 0:00:09]} Re1 {[%emt 0:00:10]} 67. Rb8 {[%emt 0:02:13]} Rh1 {[%emt 0:00:57]} 68. Rf8+ {[%emt 0:00:06]} Kg7 {[%emt 0:00:10]} 69. Re8 {[%emt 0:02:08]} Kf7 {[%emt 0:00:11]} 70. Rh8 {[%emt 0:01:45]} Rxh3 {[%emt 0:00:18]} 71. Ke3 {[%emt 0:00:20]} Kg7 {[%emt 0:04:14]} 72. Re8 {[%emt 0:00:05]} Rh1 {[%emt 0:00:15]} 73. Kf2 {[%emt 0:00:51]} Kf6 {[%emt 0:01:35]} 74. Rf8+ {[%emt 0:01:53]} Ke5 {[%emt 0:00:03]} 75. Rg8 {[%emt 0:00:07]} Ra1 {[%emt 0:00:05]} 76. Ke3 {[%emt 0:00:39]} Ra3+ {[%emt 0:00:06]} 77. Kf2 {[%emt 0:00:05]} Ra2+ {[%emt 0:00:40]} 78. Ke3 {[%emt 0:00:04]} Kf6 {[%emt 0:00:09]} 79. Rf8+ {[%emt 0:00:12]} Kg7 {[%emt 0:00:11]} 80. Rb8 {[%emt 0:00:38]} h3 {[%emt 0:00:35]} 81. Rb1 {[%emt 0:00:17]} h2 {[%emt 0:00:47]} 82. Rh1 {[%emt 0:00:26]} Kf6 {[%emt 0:01:48]} 83. Ke4 {[%emt 0:00:54]} Rb2 {[%emt 0:02:45]} 84. Kd4 {[%emt 0:00:10]} Rg2 {[%emt 0:01:16]} 85. Ke4 {[%emt 0:00:17]} Re2+ {[%emt 0:01:22]} 86. Kd4 {[%emt 0:00:06]} Ke7 {[%emt 0:00:38]} 87. Ra1 {[%emt 0:00:17]} Ra2 {[%emt 0:00:18]} 88. Rh1 {[%emt 0:00:08]} Kd6 {[%emt 0:00:16]} 89. Rd1 {[%emt 0:00:30]} Rd2+ {[%emt 0:01:49]} 90. Rxd2 {[%emt 0:15:11]} 0-1

[Event "26th OIBM 2023"]
[Site "Gmund am Tegernsee"]
[Date "2023.11.04"]
[Round "8.27"]
[White "Schneider, Jana"]
[Black "Neuhoff, Laertes"]
[Result "1-0"]
[ECO "B30"]
[WhiteElo "2285"]
[BlackElo "1902"]
[Annotator "ChessBase"]
[PlyCount "77"]
[EventDate "2023.10.04"]
[EventType "swiss"]
[EventCountry "GER"]
[SourceTitle "playchess.com"]
[Source "ChessBase"]
[SourceQuality "1"]
[TimeControl "40/5400+30:1800+30"]

1. e4 {[%emt 0:00:03]} c5 {[%emt 0:00:00]} 2. Nf3 {[%emt 0:00:10]} Nc6 {[%emt 0:00:02]} 3. Nc3 {[%emt 0:00:10]} Nf6 {[%emt 0:00:05]} 4. Bb5 {[%emt 0:00:08]} Nd4 {[%emt 0:00:50]} 5. e5 {[%emt 0:07:29]} Nxb5 {[%emt 0:01:37]} 6. Nxb5 {[%emt 0:00:17]} Nd5 {[%emt 0:01:44]} 7. Ng5 {[%emt 0:02:37]} f6 {[%emt 0:21:10]} 8. Qf3 {[%emt 0:14:05]} fxg5 {[%emt 0:02:55]} 9. Qxd5 {[%emt 0:00:15]} e6 {[%emt 0:00:10]} 10. Qf3 {[%emt 0:01:57]} Be7 {[%emt 0:01:01]} 11. O-O {[%emt 0:01:29]} Rb8 {[%emt 0:15:14]} 12. Nxa7 {[%emt 0:18:25]} b6 {[%emt 0:01:43]} 13. Nxc8 {[%emt 0:00:36]} Qxc8 {[%emt 0:02:27]} 14. d3 {[%emt 0:00:41]} g6 {[%emt 0:08:59]} 15. Qg3 {[%emt 0:07:45]} O-O {[%emt 0:01:16]} 16. Bxg5 {[%emt 0:00:29]} Bxg5 {[%emt 0:00:02]} 17. Qxg5 {[%emt 0:00:07]} Rf5 {[%emt 0:00:10]} 18. Qe3 {[%emt 0:00:55]} Qc6 {[%emt 0:00:07]} 19. a4 {[%emt 0:07:24]} Ra8 {[%emt 0:00:50]} 20. b3 {[%emt 0:00:13]} Qd5 {[%emt 0:00:08]} 21. Rae1 {[%emt 0:02:11]} Raf8 {[%emt 0:00:26]} 22. Qe4 {[%emt 0:00:23]} Rf4 {[%emt 0:01:01]} 23. Qxd5 {[%emt 0:00:28]} exd5 {[%emt 0:00:01]} 24. g3 {[%emt 0:02:44]} Rf3 {[%emt 0:00:28]} 25. e6 {[%emt 0:01:31]} dxe6 {[%emt 0:00:12]} 26. Rxe6 {[%emt 0:00:06]} R3f6 {[%emt 0:00:08]} 27. Rxf6 {[%emt 0:00:15]} Rxf6 {[%emt 0:00:08]} 28. Re1 {[%emt 0:00:47]} d4 {[%emt 0:00:08]} 29. Re7 {[%emt 0:00:25]} Rf7 {[%emt 0:00:42]} 30. Rxf7 {[%emt 0:00:46]} Kxf7 {[%emt 0:00:02]} 31. f4 {[%emt 0:00:37]} Kf6 {[%emt 0:00:04]} 32. Kf2 {[%emt 0:00:14]} Kf5 {[%emt 0:00:30]} 33. Kf3 {[%emt 0:00:05]} h5 {[%emt 0:00:03]} 34. h3 {[%emt 0:00:07]} Kf6 {[%emt 0:00:05]} 35. g4 {[%emt 0:00:18]} hxg4+ {[%emt 0:43:32]} 36. Kxg4 {[%emt 0:00:23]} Kf7 {[%emt 0:00:00]} 37. Kg5 {[%emt 0:00:06]} Kg7 {[%emt 0:00:00]} 38. f5 {[%emt 0:00:17]} gxf5 {[%emt 0:00:00]} 39. Kxf5 {[%emt 0:00:06]} 1-0

[Event "26th OIBM 2023"]
[Site "Gmund am Tegernsee"]
[Date "2023.11.04"]
[Round "8.28"]
[White "Hanisch, Sebastian"]
[Black "Bracker, Arne"]
[Result "0-1"]
[ECO "D05"]
[WhiteElo "2070"]
[BlackElo "2279"]
[Annotator "ChessBase"]
[PlyCount "44"]
[EventDate "2023.10.04"]
[EventType "swiss"]
[EventCountry "GER"]
[SourceTitle "playchess.com"]
[Source "ChessBase"]
[SourceQuality "1"]
[TimeControl "40/5400+30:1800+30"]

1. d4 {[%emt 0:00:03]} Nf6 {[%emt 0:00:09]} 2. Nf3 {[%emt 0:00:06]} e6 {[%emt 0:00:13]} 3. e3 {[%emt 0:00:23]} d5 {[%emt 0:00:58]} 4. Bd3 {[%emt 0:00:25]} b6 {[%emt 0:00:31]} 5. O-O {[%emt 0:00:28]} Bd6 {[%emt 0:01:56]} 6. b3 {[%emt 0:00:12]} O-O {[%emt 0:00:20]} 7. Bb2 {[%emt 0:00:09]} Bb7 {[%emt 0:00:30]} 8. Ne5 {[%emt 0:01:38]} c5 {[%emt 0:00:26]} 9. Nd2 {[%emt 0:00:38]} Nc6 {[%emt 0:00:29]} 10. f4 {[%emt 0:03:19]} Rc8 {[%emt 0:00:40]} 11. c4 {[%emt 0:16:58]} cxd4 {[%emt 0:19:26]} 12. Nxc6 {[%emt 0:07:19]} Bxc6 {[%emt 0:03:54]} 13. Bxd4 {[%emt 0:00:13]} dxc4 {[%emt 0:03:55]} 14. Nxc4 {[%emt 0:04:28]} Be7 {[%emt 0:00:07]} 15. Qe2 {[%emt 0:08:46]} Qd5 {[%emt 0:04:32]} 16. Rad1 {[%emt 0:02:19]} Qh5 {[%emt 0:05:46]} 17. Qb2 {[%emt 0:09:10]} Rfd8 {[%emt 0:06:25]} 18. Ne5 {[%emt 0:02:41]} Ng4 {[%emt 0:16:15]} 19. Nxg4 {[%emt 0:12:26]} Qxg4 {[%emt 0:00:17]} 20. e4 {[%emt 0:01:31]} Rxd4 {[%emt 0:03:14]} 21. Be2 {[%emt 0:02:38]} Rxd1 {[%emt 0:00:21]} 22. Bxd1 {[%emt 0:04:37]} Qg6 {[%emt 0:01:37]} 0-1